bitfinex-derivatives/quotes_ETHF0:USTF0_20250213
["timestamp","ask_amount","ask_price","bid_price","bid_amount"]
[1739488261085,7.09735902,2669.7,2669.1,3.2078]
[1739488261290,0.74917,2669.3,2669.2,0.74915]
[1739488261786,3.7773,2669.7,2669.1,5.08079]
[1739488261975,0.74914,2669.4,2669.3,0.74911]
[1739488262177,0.74911,2669.5,2669.4,0.74908]
[1739488262779,0.74914,2669.4,2669.3,0.74912]
[1739488262979,0.74911,2669.5,2669.4,0.74909]
[1739488263186,5.0804,2669.7,2669.1,4.8758]
[1739488263491,0.74917,2669.2,2669.1,4.8758]
[1739488263883,5.19286902,2669.4,2669.0,0.00561977]
[1739488264189,0.7492,2669.1,2669.0,0.00561977]
[1739488264785,7.27705902,2669.1,2669.0,0.00561977]
[1739488267482,1.87308,2669.0,2668.3,0.74941]
[1739488267785,0.74944,2668.3,2668.2,0.74943]
[1739488268290,0.5956,2668.6,2668.1,3.2078]
[1739488268483,0.74941,2668.4,2668.3,0.74941]
[1739488268884,0.5917,2668.5,2668.1,3.21341977]
[1739488269084,0.7494,2668.4,2668.3,0.7494]
[1739488269483,0.74943,2668.3,2668.2,0.74944]
[1739488269682,0.74941,2668.4,2668.3,0.7494]
[1739488269882,0.74941,2668.4,2668.1,3.21341977]
[1739488270083,0.74945,2668.2,2668.1,0.00561977]
[1739488271599,0.74945,2668.2,2668.1,0.75509977]
[1739488271998,0.74945,2668.2,2668.1,0.00561977]
[1739488272503,0.74945,2668.2,2668.1,0.75509977]
[1739488272904,0.74945,2668.2,2668.1,0.00561977]
[1739488273307,0.74945,2668.2,2668.1,0.75509977]
[1739488273503,0.74945,2668.3,2668.2,0.74945]
[1739488273807,0.74943,2668.3,2668.2,0.74943]
[1739488274299,7.11955902,2668.5,2668.1,0.00561977]
[1739488274700,0.74944,2668.3,2668.2,0.74944]
[1739488275608,7.11955902,2668.5,2668.1,0.00561977]
[1739488275808,7.27730902,2668.2,2668.1,0.00561977]
[1739488277402,0.74971,2667.3,2667.2,1.1352]
[1739488277705,5.08185,2667.7,2667.0,3.2078]
[1739488277905,0.74973,2667.3,2667.2,0.74972]
[1739488278306,0.6015,2667.6,2667.0,3.7888]
[1739488278603,0.6015,2667.6,2667.2,0.74971]
[1739488278805,0.7497,2667.4,2667.3,0.7497]
[1739488278998,0.6015,2667.6,2667.3,3.2078]
[1739488279204,0.6015,2667.6,2667.0,0.58661977]
[1739488279205,0.74967,2667.5,2667.4,0.74967]
[1739488279604,0.74967,2667.5,2667.0,3.79441977]
[1739488279811,0.74967,2667.5,2667.4,0.74968]
[1739488280003,0.74967,2667.5,2667.4,0.74967]
[1739488280305,0.74967,2667.5,2667.4,0.74968]
[1739488280512,0.6015,2667.6,2667.0,5.66886977]
[1739488280709,0.6015,2667.6,2667.0,3.79441977]
[1739488280914,0.74966,2667.5,2667.4,0.74967]
[1739488282011,0.74969,2667.4,2667.3,0.7497]
[1739488282711,0.6015,2667.6,2667.0,3.79441977]
[1739488283011,1.35114,2667.6,2667.5,0.74965]
[1739488283809,0.6015,2667.6,2667.1,1.87441]
[1739488284012,0.74966,2667.5,2667.4,0.74965]
[1739488284403,0.6015,2667.6,2667.4,40.8]
[1739488284608,0.6015,2667.6,2667.5,0.74965]
[1739488284609,1.35114,2667.6,2667.5,0.74965]
[1739488285107,0.74962,2667.6,2667.5,0.74965]
[1739488285314,0.7496,2667.8,2667.7,0.74958]
[1739488285614,0.74962,2667.6,2667.5,1.1353]
[1739488287414,0.74968,2667.4,2667.3,3.95749]
[1739488288917,1.1069,2667.7,2667.3,3.2078]
[1739488289119,0.74967,2667.5,2667.4,0.74966]
[1739488289719,1.1069,2667.7,2667.3,3.2078]
[1739488290015,0.74971,2667.3,2667.2,0.5576]
[1739488290221,1.87415,2667.5,2667.1,0.5652]
[1739488290523,0.74973,2667.2,2667.1,1.31496]
[1739488290722,0.74973,2667.2,2667.1,0.5652]
[1739488292716,0.74973,2667.2,2667.1,1.31496]
[1739488293425,0.74973,2667.2,2667.1,0.5652]
[1739488293627,0.74973,2667.2,2667.1,1.31496]
[1739488295424,0.74973,2667.2,2667.1,0.5652]
[1739488295626,0.74973,2667.2,2667.1,1.31496]
[1739488296224,0.74973,2667.2,2667.1,0.5652]
[1739488296625,0.74973,2667.2,2667.1,1.31496]
[1739488297027,0.74973,2667.2,2667.1,0.5652]
[1739488297223,0.74973,2667.2,2667.1,1.31496]
[1739488297528,0.74973,2667.2,2667.1,0.5652]
[1739488297728,0.74973,2667.2,2667.1,1.31496]
[1739488301832,3.7777,2667.6,2667.1,0.5652]
[1739488302130,0.7497,2667.5,2667.4,0.74965]
[1739488302431,0.74973,2667.3,2667.2,0.74969]
[1739488302928,0.74971,2667.4,2667.3,0.74968]
[1739488303930,3.2078,2667.6,2667.1,0.5652]
[1739488304130,0.74973,2667.2,2667.1,1.31494]
[1739488305728,0.74973,2667.2,2667.1,1.31496]
[1739488306124,0.74976,2667.1,2667.0,0.75540977]
[1739488306634,0.74976,2667.2,2667.1,0.74975]
[1739488308034,5.6782,2667.6,2667.0,0.00561977]
[1739488308231,0.74969,2667.5,2667.4,0.74965]
[1739488308630,0.74971,2667.4,2667.3,0.74969]
[1739488309232,0.74972,2667.3,2667.2,0.74971]
[1739488309427,5.62527,2667.6,2667.1,0.5961]
[1739488309735,0.74976,2667.1,2667.0,0.75539977]
[1739488310133,3.32005902,2667.4,2667.0,0.00561977]
[1739488310335,0.74975,2667.2,2667.1,0.74974]
[1739488311737,3.32005902,2667.4,2667.0,0.00561977]
[1739488311939,0.74976,2667.1,2667.0,0.00561977]
[1739488312437,0.74976,2667.1,2667.0,0.75540977]
[1739488313836,1.1401,2667.2,2667.0,0.00561977]
[1739488314039,1.88986,2667.2,2667.1,0.74976]
[1739488314339,0.74976,2667.1,2667.0,0.75537977]
[1739488314847,1.1401,2667.2,2667.0,0.00561977]
[1739488315138,1.88986,2667.2,2667.1,0.74976]
[1739488316036,1.1401,2667.2,2667.0,0.00561977]
[1739488316235,0.74976,2667.1,2667.0,0.75538977]
[1739488316636,0.74976,2667.1,2667.0,0.00561977]
[1739488317844,0.74976,2667.1,2667.0,0.75540977]
[1739488318143,0.74976,2667.1,2667.0,0.00561977]
[1739488319445,4.06981902,2667.1,2667.0,0.00561977]
[1739488326640,5.71581902,2667.1,2667.0,0.00561977]
[1739488327840,11.71581902,2667.1,2667.0,9.77e-06]
[1739488328049,0.75001,2666.2,2666.1,0.57]
[1739488328441,0.74997,2666.4,2666.3,0.74999]
[1739488328747,0.74995,2666.5,2666.4,0.74993]
[1739488329243,0.74999,2666.4,2666.3,0.74997]
[1739488329440,0.5735,2666.6,2666.2,0.00561977]
[1739488329749,0.74998,2666.4,2666.3,0.74996]
[1739488330042,0.5735,2666.6,2666.2,0.00561977]
[1739488330351,0.5735,2666.6,2666.4,3.2078]
[1739488330542,0.56961977,2666.7,2666.4,3.2078]
[1739488330543,0.75551977,2666.7,2666.6,0.7499]
[1739488330843,0.00561977,2666.7,2666.6,0.7499]
[1739488331238,0.7499,2666.6,2666.5,1.8919]
[1739488331443,0.75551977,2666.7,2666.6,0.7499]
[1739488331650,0.00561977,2666.7,2666.6,0.7499]
[1739488335246,0.00561977,2666.7,2666.6,4.06995902]
[1739488335943,3.32005902,2667.6,2666.6,9.32005902]
[1739488336138,0.5686,2667.5,2667.0,3.2078]
[1739488336447,0.74963,2667.6,2667.5,0.74963]
[1739488336650,3.2078,2667.7,2667.3,0.74968]
[1739488336651,0.74969,2667.4,2667.3,0.74968]
[1739488337745,0.00561977,2667.6,2667.1,1.7314]
[1739488337951,0.74972,2667.3,2667.2,0.74971]
[1739488338150,0.7497,2667.4,2667.3,0.74969]
[1739488338953,0.5559,2667.5,2667.1,1.7314]
[1739488339454,0.5559,2667.5,2667.1,1.136]
[1739488339954,0.74972,2667.3,2667.2,0.74971]
[1739488340255,0.5559,2667.5,2667.1,1.136]
[1739488340448,0.74973,2667.2,2667.1,1.88576]
[1739488340850,0.74973,2667.3,2667.2,0.74972]
[1739488341254,0.5559,2667.5,2667.1,1.136]
[1739488341443,0.74972,2667.3,2667.2,0.74971]
[1739488341849,0.74973,2667.2,2667.1,1.88573]
[1739488342157,0.5559,2667.5,2667.1,1.136]
[1739488342356,0.74972,2667.3,2667.2,0.74971]
[1739488342854,0.5559,2667.5,2667.3,0.74968]
[1739488342855,0.74969,2667.4,2667.3,0.74968]
[1739488343054,0.74969,2667.4,2667.1,1.136]
[1739488343055,1.30557,2667.5,2667.4,0.74968]
[1739488343253,0.00561977,2667.6,2667.4,0.74968]
[1739488343454,0.00561977,2667.6,2667.3,3.2078]
[1739488343651,0.74968,2667.4,2667.3,3.95749]
[1739488344257,0.74968,2667.4,2667.3,3.95983341]
[1739488344559,0.74968,2667.4,2667.3,0.00234341]
[1739488345561,1.32978,2667.5,2667.4,0.74968]
[1739488345956,0.74968,2667.4,2667.3,0.75203341]
[1739488347754,0.00561977,2667.6,2667.3,0.00234341]
[1739488347955,0.74968,2667.5,2667.4,0.74966]
[1739488348161,0.00561977,2667.6,2667.3,0.55724341]
[1739488348360,0.74968,2667.4,2667.3,1.30693341]
[1739488349258,0.74968,2667.4,2667.3,0.55724341]
[1739488349456,0.74968,2667.4,2667.3,0.00234341]
[1739488353762,0.74968,2667.4,2667.3,0.75205341]
[1739488354169,0.75526977,2667.6,2667.5,0.74965]
[1739488354668,0.74965,2667.5,2667.4,1.1969]
[1739488355170,0.74965,2667.5,2667.4,1.94658]
[1739488357272,0.74965,2667.5,2667.4,0.5969]
[1739488357580,0.00561977,2667.6,2667.3,0.75204341]
[1739488357581,0.74968,2667.4,2667.3,0.75204341]
[1739488357784,1.29688,2667.4,2667.3,0.75204341]
[1739488359282,1.29688,2667.4,2667.3,0.00234341]
[1739488361482,1.29688,2667.4,2667.3,0.75205341]
[1739488361985,0.74968,2667.5,2667.4,0.74968]
[1739488362378,0.74968,2667.4,2667.3,0.00234341]
[1739488363286,0.74968,2667.4,2667.3,0.75205341]
[1739488364183,0.56181977,2667.6,2667.3,0.00234341]
[1739488364488,0.74967,2667.5,2667.4,0.74965]
[1739488365888,0.74965,2667.5,2667.4,0.74965]
[1739488366090,0.00561977,2667.6,2667.3,3.21014341]
[1739488366391,0.00561977,2667.6,2667.5,0.74965]
[1739488366889,0.75523977,2667.6,2667.5,0.74965]
[1739488368091,0.00561977,2667.6,2667.5,0.74965]
[1739488370289,0.75523977,2667.6,2667.5,0.74965]
[1739488370793,0.00561977,2667.6,2667.5,0.74965]
[1739488373293,0.75523977,2667.6,2667.5,0.74965]
[1739488374594,0.00561977,2667.6,2667.5,0.74965]
[1739488375596,3.2078,2668.3,2667.5,1.632]
[1739488375796,3.2078,2668.3,2667.9,0.7495]
[1739488375797,0.74952,2668.0,2667.9,0.7495]
[1739488376097,0.593,2668.2,2667.7,0.5868]
[1739488376302,0.74957,2667.8,2667.7,1.33636]
[1739488376794,0.00561977,2668.0,2667.9,0.74952]
[1739488378196,0.00561977,2668.0,2667.9,3.95732]
[1739488380204,0.75512977,2668.0,2667.9,3.95732]
[1739488380506,0.00561977,2668.0,2667.9,3.2078]
[1739488380691,0.75512977,2668.0,2667.9,3.95734]
[1739488382603,0.00561977,2668.0,2667.9,3.95734]
[1739488383406,1.1343,2668.5,2667.9,3.2078]
[1739488383700,3.32005902,2669.1,2668.3,3.2078]
[1739488384005,1.1112,2669.0,2668.7,3.2078]
[1739488384199,1.86044,2669.0,2668.8,0.546]
[1739488384504,1.86044,2669.0,2668.9,0.74926]
[1739488384505,1.1112,2669.0,2668.9,0.74926]
[1739488385004,0.75478977,2669.2,2669.1,0.7492]
[1739488385202,0.75478977,2669.2,2668.9,0.5893]
[1739488385393,0.75478977,2669.2,2669.1,0.7492]
[1739488386307,0.75478977,2669.2,2668.9,0.59491977]
[1739488386598,0.75478977,2669.2,2669.0,0.74921]
[1739488386800,0.75478977,2669.2,2668.9,0.59491977]
[1739488386801,0.00561977,2669.2,2668.9,0.59491977]
[1739488386998,0.74923,2669.0,2668.9,0.59491977]
[1739488387200,0.74923,2669.0,2668.9,0.00561977]
[1739488388310,0.5867,2669.1,2668.9,0.00561977]
[1739488388501,0.5867,2669.1,2669.0,0.74923]
[1739488388806,1.3359,2669.1,2668.9,0.00561977]
[1739488388996,0.74923,2669.0,2668.9,0.00561977]
[1739488389906,0.74923,2669.0,2668.9,0.75487977]
[1739488390309,0.74923,2669.0,2668.9,0.00561977]
[1739488391504,0.5867,2669.1,2669.0,0.74923]
[1739488391703,0.75480977,2669.2,2668.9,0.00561977]
[1739488391909,0.75480977,2669.2,2669.1,0.7492]
[1739488392109,0.7492,2669.1,2669.0,1.34172]
[1739488393014,0.00561977,2669.2,2669.1,0.7492]
[1739488393310,0.75478977,2669.2,2669.1,0.7492]
[1739488393502,0.00561977,2669.2,2669.1,0.7492]
[1739488393909,0.00561977,2669.2,2669.0,0.5925]
[1739488394106,0.00561977,2669.2,2668.9,0.00561977]
[1739488394301,0.74923,2669.0,2668.9,0.75485977]
[1739488395299,0.74922,2669.1,2669.0,0.74922]
[1739488396606,0.00561977,2669.2,2668.9,0.00561977]
[1739488396805,0.75480977,2669.2,2669.1,0.7492]
[1739488397010,0.00561977,2669.2,2669.1,3.957]
[1739488398215,0.75478977,2669.2,2669.1,3.957]
[1739488398406,0.00561977,2669.2,2669.1,3.957]
[1739488400914,0.75478977,2669.2,2669.1,3.957]
[1739488401101,0.00561977,2669.2,2669.1,3.957]
[1739488402809,0.75478977,2669.2,2669.1,3.2078]
[1739488403808,0.74923,2669.0,2668.9,0.00561977]
[1739488404607,0.74923,2669.0,2668.9,0.75487977]
[1739488409517,0.74923,2669.0,2668.9,0.00561977]
[1739488409719,0.74923,2669.0,2668.9,0.75487977]
[1739488410513,0.74923,2669.0,2668.9,0.00561977]
[1739488410719,4.06928902,2669.0,2668.9,0.00561977]
[1739488412629,0.74942,2668.3,2668.2,3.95722]
[1739488413125,0.74942,2668.3,2668.2,3.2078]
[1739488413327,0.74945,2668.2,2668.1,1.33796]
[1739488413541,1.31735,2668.2,2668.1,1.33796]
[1739488414030,1.31069,2668.5,2668.4,0.7494]
[1739488414231,0.5613,2668.5,2668.4,0.7494]
[1739488414420,1.31067,2668.5,2668.4,0.7494]
[1739488414621,1.31067,2668.5,2668.1,3.7963]
[1739488414915,0.7494,2668.4,2668.3,0.74941]
[1739488415115,0.7494,2668.4,2668.1,3.7963]
[1739488415317,0.7494,2668.4,2668.2,0.74943]
[1739488416320,0.5613,2668.5,2668.1,3.7963]
[1739488416321,0.74945,2668.2,2668.1,3.7963]
[1739488419027,0.74945,2668.2,2668.1,4.54578]
[1739488419223,0.74945,2668.2,2668.1,1.33798]
[1739488419621,0.74945,2668.2,2668.1,4.54578]
[1739488419821,0.74945,2668.2,2668.1,4.54576]
[1739488421730,0.74945,2668.2,2668.1,1.33796]
[1739488422730,0.74945,2668.2,2668.1,0.5885]
[1739488423932,0.74951,2668.0,2667.9,43.18014977]
[1739488424230,0.74951,2668.0,2667.9,2.93774977]
[1739488425428,1.336,2668.1,2668.0,0.74951]
[1739488425732,0.74951,2668.0,2667.9,2.93772977]
[1739488425927,0.74951,2668.0,2667.9,1.31272977]
[1739488426427,0.74951,2668.0,2667.9,1.31275977]
[1739488426634,0.74951,2668.0,2667.9,0.56321977]
[1739488426830,0.74951,2668.0,2667.9,0.00561977]
[1739488427026,0.5865,2668.1,2668.0,0.74951]
[1739488427027,1.336,2668.1,2668.0,0.74951]
[1739488428732,0.5865,2668.1,2668.0,0.74951]
[1739488428932,1.33598,2668.1,2668.0,0.74951]
[1739488431035,0.74951,2668.0,2667.9,0.75513977]
[1739488432034,1.33601,2668.1,2668.0,0.74951]
[1739488432626,1.33598,2668.1,2668.0,0.74951]
[1739488432832,3.32005902,2668.6,2668.0,0.74951]
[1739488433030,0.74945,2668.3,2668.2,0.74943]
[1739488434234,0.74944,2668.3,2668.2,0.74943]
[1739488435236,0.74945,2668.2,2668.1,4.55817]
[1739488435531,0.5729,2668.4,2668.1,3.8087]
[1739488435730,0.74944,2668.3,2668.2,0.74943]
[1739488436830,0.5729,2668.4,2668.1,3.8087]
[1739488437030,1.32231,2668.4,2668.3,0.74942]
[1739488438435,0.5729,2668.4,2668.3,0.74942]
[1739488438736,0.74935,2668.6,2668.5,0.74934]
[1739488439235,0.7494,2668.5,2668.4,0.74939]
[1739488440633,1.1619,2668.7,2668.3,0.5613]
[1739488440938,0.00561977,2669.2,2668.7,1.87325]
[1739488441132,0.00561977,2669.2,2668.5,3.32005902]
[1739488441133,0.00561977,2669.2,2669.1,0.7492]
[1739488441436,0.75478977,2669.2,2669.1,0.7492]
[1739488441827,0.00561977,2669.2,2669.1,7.27705902]
[1739488442433,0.00561977,2669.2,2669.1,7.57111415]
[1739488442841,0.00561977,2669.2,2669.1,7.27705902]
[1739488443337,0.75478977,2669.2,2669.1,3.957]
[1739488443551,0.75478977,2669.2,2669.1,3.2078]
[1739488444043,0.74925,2669.0,2668.8,1.34398]
[1739488444241,0.5462,2668.9,2668.8,1.34398]
[1739488444943,0.5462,2668.9,2668.8,0.5947]
[1739488445145,1.29546,2668.9,2668.8,0.5947]
[1739488445539,0.5462,2668.9,2668.8,1.34398]
[1739488445742,0.00561977,2669.2,2669.1,0.7492]
[1739488450243,0.00561977,2669.2,2669.1,2.3742]
[1739488451047,0.00561977,2669.2,2669.1,5.69425902]
[1739488451346,0.5663,2669.6,2669.5,0.74909]
[1739488451741,1.88702,2669.8,2669.6,0.74903]
[1739488451942,1.88702,2669.8,2669.7,0.74903]
[1739488452150,0.74905,2669.7,2669.6,0.74905]
[1739488452345,0.74907,2669.6,2669.5,0.74908]
[1739488452850,0.74905,2669.7,2669.6,0.74905]
[1739488453345,0.74906,2669.6,2669.5,0.74907]
[1739488453651,0.74904,2669.7,2669.6,0.74904]
[1739488453845,1.138,2669.8,2669.5,0.5523]
[1739488454043,0.74906,2669.6,2669.5,1.30138]
[1739488454747,0.74906,2669.6,2669.5,1.30139]
[1739488454949,0.74906,2669.6,2669.5,0.5523]
[1739488455342,3.01053,2669.8,2669.3,3.78771977]
[1739488455343,3.01053,2669.8,2669.3,4.53684977]
[1739488455542,0.74912,2669.4,2669.3,3.78771977]
[1739488455743,0.74912,2669.4,2669.3,3.21341977]
[1739488456052,0.74912,2669.4,2669.3,3.96255977]
[1739488456251,1.138,2669.8,2669.3,3.21341977]
[1739488456549,0.74904,2669.7,2669.4,0.74912]
[1739488456743,0.74904,2669.7,2669.6,0.74906]
[1739488456949,0.5502,2669.8,2669.3,4.37431977]
[1739488457149,0.5502,2669.8,2669.7,0.74903]
[1739488457350,0.00561977,2669.9,2669.6,3.2078]
[1739488457553,0.00561977,2669.9,2669.8,0.749]
[1739488457749,0.00561977,2669.9,2669.8,1.3335]
[1739488458849,0.75459977,2669.9,2669.8,1.3335]
[1739488459347,0.749,2669.8,2669.7,0.5458]
[1739488459553,1.3291,2669.8,2669.7,0.5458]
[1739488459948,0.5801,2669.8,2669.5,3.7862]
[1739488460149,1.1288,2669.7,2669.3,0.00561977]
[1739488460456,0.74912,2669.4,2669.3,0.75474977]
[1739488461048,0.74912,2669.4,2669.3,0.00561977]
[1739488462156,1.32922,2669.4,2669.3,0.00561977]
[1739488463850,0.5801,2669.4,2669.3,0.75475977]
[1739488464656,0.5801,2669.4,2669.3,1.30865977]
[1739488465157,1.1288,2669.7,2669.3,0.55951977]
[1739488465457,1.33587,2669.6,2669.5,0.74909]
[1739488466157,0.74909,2669.5,2669.4,0.7491]
[1739488466344,1.33587,2669.6,2669.3,0.55951977]
[1739488466755,0.5868,2669.6,2669.3,0.55951977]
[1739488466955,0.74912,2669.4,2669.3,0.55951977]
[1739488468049,0.74912,2669.4,2669.3,1.30865977]
[1739488468248,0.5868,2669.6,2669.3,0.55951977]
[1739488468560,1.33588,2669.6,2669.5,0.74909]
[1739488469360,0.7491,2669.5,2669.4,0.74909]
[1739488469562,0.5868,2669.6,2669.3,0.55951977]
[1739488469761,0.74902,2669.8,2669.3,0.55951977]
[1739488470056,0.56681977,2669.9,2669.8,0.749]
[1739488471758,1.31579977,2669.9,2669.8,0.749]
[1739488472148,0.749,2669.8,2669.7,1.89852]
[1739488472353,0.56681977,2669.9,2669.3,0.00561977]
[1739488472658,0.74912,2669.4,2669.3,0.75474977]
[1739488472858,0.74912,2669.4,2669.3,0.00561977]
[1739488473161,0.74907,2669.6,2669.5,0.74906]
[1739488473464,0.74905,2669.7,2669.6,0.74905]
[1739488473755,0.74902,2669.8,2669.7,0.74902]
[1739488474254,0.56681977,2669.9,2669.5,0.5989]
[1739488474755,0.74909,2669.5,2669.4,4.54241]
[1739488474956,0.74909,2669.5,2669.4,3.7933]
[1739488476462,0.74908,2669.6,2669.5,0.74907]
[1739488477968,0.74904,2669.7,2669.6,0.74903]
[1739488479763,0.74904,2669.7,2669.4,3.7933]
[1739488479764,1.87253,2669.8,2669.4,3.7933]
[1739488479964,0.74909,2669.5,2669.4,4.54239]
[1739488480666,0.56681977,2669.9,2669.4,3.7933]
[1739488480866,0.56681977,2669.9,2669.5,0.74906]
[1739488480867,0.74907,2669.6,2669.5,0.74906]
[1739488481074,2.43926977,2669.9,2669.4,3.7933]
[1739488481075,0.56681977,2669.9,2669.4,3.7933]
[1739488481260,0.74906,2669.7,2669.6,0.74904]
[1739488482259,0.74909,2669.5,2669.4,3.7933]
[1739488482658,0.74909,2669.5,2669.4,4.54242]
[1739488486167,0.74909,2669.5,2669.4,3.7933]
[1739488486369,0.74909,2669.5,2669.4,3.2078]
[1739488486770,0.74909,2669.5,2669.4,3.95692]
[1739488487570,0.74907,2669.6,2669.5,0.74906]
[1739488488579,0.74909,2669.5,2669.4,3.9569]
[1739488488867,1.35009,2669.5,2669.4,3.9569]
[1739488493372,1.35009,2669.5,2669.4,3.2078]
[1739488493769,1.35009,2669.5,2669.4,3.95692]
[1739488494170,1.35009,2669.5,2669.4,3.2078]
[1739488495769,1.35009,2669.5,2669.4,3.95692]
[1739488499774,1.87808977,2669.9,2669.4,3.2078]
[1739488499970,0.74905,2669.7,2669.6,0.74904]
[1739488500573,0.58801977,2669.9,2669.8,0.749]
[1739488500770,0.75459977,2669.9,2669.8,0.749]
[1739488501788,0.00561977,2669.9,2669.8,0.749]
[1739488503283,0.75459977,2669.9,2669.8,0.749]
[1739488503589,0.00561977,2669.9,2669.7,3.7931]
[1739488503796,0.749,2669.8,2669.7,4.54211]
[1739488504493,0.00561977,2669.9,2669.8,0.749]
[1739488504682,0.75459977,2669.9,2669.8,0.749]
[1739488505295,0.00561977,2669.9,2669.7,3.7931]
[1739488505602,0.749,2669.8,2669.7,0.5853]
[1739488505893,1.34491,2669.8,2669.5,0.5698]
[1739488506098,0.00561977,2669.9,2669.8,0.749]
[1739488508596,0.00561977,2669.9,2669.8,4.06905902]
[1739488509296,0.00561977,2669.9,2669.8,5.69305902]
[1739488510297,0.75459977,2669.9,2669.8,1.624]
[1739488510695,0.00561977,2669.9,2669.6,3.7617]
[1739488511093,0.00561977,2669.9,2669.8,0.749]
[1739488511094,0.58371977,2669.9,2669.8,0.749]
[1739488511602,0.74903,2669.7,2669.6,3.2078]
[1739488512002,0.5646,2669.8,2669.5,0.5698]
[1739488512204,1.31361,2669.8,2669.7,0.74903]
[1739488512399,1.3136,2669.8,2669.7,0.74903]
[1739488512604,0.5646,2669.8,2669.7,0.74903]
[1739488514002,1.3136,2669.8,2669.7,0.74903]
[1739488514204,0.5646,2669.8,2669.7,0.74903]
[1739488514400,1.3136,2669.8,2669.7,0.74903]
[1739488516100,0.74903,2669.7,2669.6,4.53445]
[1739488516405,0.5646,2669.8,2669.6,3.7854]
[1739488516606,1.31362,2669.8,2669.7,0.74903]
[1739488516807,1.33271977,2669.9,2669.8,0.749]
[1739488517707,0.58371977,2669.9,2669.8,0.749]
[1739488518098,1.33269977,2669.9,2669.8,0.749]
[1739488518807,0.58371977,2669.9,2669.8,0.749]
[1739488519408,0.00561977,2669.9,2669.8,0.749]
[1739488519704,0.00561977,2669.9,2669.8,4.06905902]
[1739488520100,0.75459977,2669.9,2669.8,0.749]
[1739488520605,0.00561977,2669.9,2669.7,1.624]
[1739488520808,0.75461977,2669.9,2669.7,2.37302]
[1739488521007,0.75461977,2669.9,2669.7,1.624]
[1739488521197,0.00561977,2669.9,2669.8,0.749]
[1739488522205,0.75459977,2669.9,2669.8,0.749]
[1739488523100,0.00561977,2669.9,2669.8,0.749]
[1739488524610,0.00561977,2669.9,2669.8,1.05139659]
[1739488525409,0.00561977,2669.9,2669.8,4.37145561]
[1739488526601,0.00561977,2669.9,2669.8,4.06905902]
[1739488526805,0.00561977,2669.9,2669.7,1.624]
[1739488527107,0.75460977,2669.9,2669.8,0.749]
[1739488527610,0.749,2669.8,2669.7,2.37301]
[1739488528404,0.75461977,2669.9,2669.8,0.749]
[1739488528907,0.00561977,2669.9,2669.7,1.624]
[1739488529109,0.5822,2669.8,2669.6,3.7854]
[1739488529312,0.74903,2669.7,2669.6,6.15844]
[1739488529811,1.1353,2669.8,2669.6,5.4094]
[1739488530009,0.74903,2669.7,2669.6,6.15845]
[1739488530412,1.88431,2669.8,2669.7,0.74903]
[1739488531103,1.1353,2669.8,2669.6,5.4094]
[1739488531309,0.74903,2669.7,2669.6,5.4094]
[1739488531511,0.74903,2669.7,2669.6,6.15846]
[1739488531814,0.74903,2669.7,2669.6,5.4094]
[1739488532316,0.74903,2669.7,2669.6,6.15846]
[1739488533705,1.1353,2669.8,2669.6,5.4094]
[1739488533914,1.1353,2669.8,2669.7,0.74903]
[1739488535115,0.74903,2669.7,2669.6,5.4094]
[1739488535413,3.00784,2669.8,2669.3,3.96255977]
[1739488535617,0.74912,2669.4,2669.3,6.16225977]
[1739488536014,0.74912,2669.4,2669.3,5.41311977]
[1739488536516,0.74911,2669.5,2669.4,0.74911]
[1739488538422,1.1353,2669.8,2669.7,0.74903]
[1739488538611,0.5822,2669.8,2669.7,0.74903]
[1739488539120,0.00561977,2669.9,2669.7,1.1163]
[1739488539316,0.75460977,2669.9,2669.8,0.749]
[1739488539719,0.75460977,2669.9,2669.8,40.8]
[1739488540519,0.00561977,2669.9,2669.8,41.549]
[1739488540915,0.00561977,2669.9,2669.8,0.749]
[1739488545217,1.15521977,2669.9,2669.7,5.9481]
[1739488545422,0.5968,2669.8,2669.7,6.69713]
[1739488545823,1.15521977,2669.9,2669.8,0.749]
[1739488546123,0.00561977,2669.9,2669.8,0.749]
[1739488553825,0.00561977,2669.9,2669.8,1.3377]
[1739488559036,0.00561977,2669.9,2669.8,4.5455]
[1739488566337,0.5718,2670.3,2670.2,0.74889]
[1739488566543,0.5718,2670.3,2670.2,3.95669]
[1739488569140,1.32066,2670.3,2670.2,3.95669]
[1739488570136,0.5718,2670.3,2670.2,3.95669]
[1739488570731,1.32066,2670.3,2670.2,3.95669]
[1739488571745,0.5718,2670.3,2670.2,3.95669]
[1739488572945,1.32066,2670.3,2670.2,3.95669]
[1739488573440,1.32066,2670.3,2670.2,3.2078]
[1739488573852,0.74895,2670.0,2669.9,2.23059601]
[1739488574849,0.74895,2670.0,2669.9,2.23060601]
[1739488575544,0.5738,2670.1,2669.9,1.48162601]
[1739488575846,0.5738,2670.1,2670.0,0.74895]
[1739488576047,1.32272,2670.1,2670.0,0.74895]
[1739488576242,0.5738,2670.1,2670.0,0.74895]
[1739488580650,1.32272,2670.1,2669.9,4.42173395]
[1739488580951,0.5738,2670.1,2669.9,0.74896]
[1739488581250,1.32275,2670.1,2669.9,0.74896]
[1739488581450,1.32272,2670.1,2670.0,0.74895]
[1739488581952,0.74895,2670.0,2669.9,0.74896]
[1739488582245,1.32274,2670.1,2669.8,3.2078]
[1739488582452,0.5833,2669.9,2669.8,3.9568]
[1739488583052,0.5738,2670.1,2670.0,0.74895]
[1739488583344,1.1571,2670.1,2670.0,0.74895]
[1739488584951,0.5833,2670.1,2670.0,0.74895]
[1739488585150,0.5833,2670.1,2670.0,1.33315]
[1739488585343,0.74886,2670.3,2670.2,0.74888]
[1739488585544,1.30726,2670.3,2670.2,0.74888]
[1739488586048,0.74889,2670.2,2670.1,1.3211]
[1739488586254,0.74889,2670.2,2670.1,3.2078]